bitfinex/quotes_SOLUSD_20251224
["timestamp","ask_amount","ask_price","bid_price","bid_amount"]
[1766598609907,10.43767296,122.66,122.63,2.82349943]
[1766598609908,11.15767296,122.66,122.63,2.82349943]
[1766598610076,11.15767296,122.66,122.63,3.54349943]
[1766598610674,19.3106444,122.66,122.63,3.54349943]
[1766598614324,18.5906444,122.66,122.62,2.82349943]
[1766598614612,0.72,122.65,122.62,3.54349943]
[1766598615727,0.72,122.65,122.61,3.54349943]
[1766598616783,8.87394651,122.64,122.61,3.54349943]
[1766598618307,8.87361464,122.65,122.62,3.54349943]
[1766598621229,8.87361464,122.65,122.62,0.72]
[1766598621407,8.87361464,122.65,122.62,3.54349943]
[1766598624217,8.15361464,122.65,122.63,0.72]
[1766598626315,8.87361464,122.65,122.63,0.72]
[1766598627623,8.87361464,122.65,122.62,3.54349943]
[1766598629922,8.87361464,122.65,122.62,0.72]
[1766598632022,8.87361464,122.65,122.62,3.54349943]
[1766598633522,8.15361464,122.65,122.63,2.82349943]
[1766598633825,8.1507975,122.69,122.65,0.72]
[1766598634124,8.8707975,122.69,122.66,3.54349943]
[1766598634418,8.8707975,122.69,122.66,0.72]
[1766598634723,0.72,122.68,122.63,23.03430688]
[1766598634917,3.54349943,122.68,122.65,0.72]
[1766598635217,3.54349943,122.68,122.63,17.70349943]
[1766598635218,0.72,122.67,122.64,0.72]
[1766598635415,0.72,122.67,122.64,2.82349943]
[1766598635617,0.72,122.68,122.64,3.54349943]
[1766598636018,0.72,122.68,122.64,0.72]
[1766598636228,8.15195239,122.67,122.64,3.54349943]
[1766598637611,8.87158367,122.68,122.65,3.47349943]
[1766598639025,0.7,122.67,122.64,2.82349943]
[1766598639225,0.7,122.67,122.64,0.65]
[1766598639427,0.7,122.67,122.64,3.47349943]
[1766598641730,8.85245562,122.67,122.64,0.65]
[1766598642026,8.85245562,122.67,122.58,0.81579376]
[1766598642027,10.43767296,122.64,122.58,0.81579376]
[1766598642226,10.43767296,122.64,122.59,0.71]
[1766598642227,0.72,122.62,122.59,0.71]
[1766598642408,0.72,122.62,122.58,2.82349943]
[1766598642610,0.72,122.62,122.59,2.82349943]
[1766598642814,0.72,122.62,122.59,3.53349943]
[1766598643206,0.72,122.62,122.59,0.71]
[1766598643430,0.72,122.62,122.59,3.53349943]
[1766598643932,8.87579006,122.62,122.59,3.53349943]
[1766598644416,8.15579006,122.62,122.59,3.53349943]
[1766598644622,8.15579006,122.62,122.6,0.71]
[1766598647119,8.15579006,122.62,122.59,3.53349943]
[1766598647325,8.15579006,122.62,122.57,0.71]
[1766598647623,8.87652553,122.61,122.58,2.82349943]
[1766598647830,8.87652553,122.61,122.59,2.82349943]
[1766598647999,8.15652553,122.61,122.59,2.82349943]
[1766598648830,8.15652553,122.61,122.59,3.53349943]
[1766598649121,10.43767296,122.63,122.61,0.71]
[1766598649426,10.43767296,122.63,122.61,3.53349943]
[1766598649620,10.43767296,122.63,122.61,0.71]
[1766598649820,18.59253519,122.63,122.61,0.71]
[1766598651125,19.31253519,122.63,122.59,3.53349943]
[1766598651328,0.72,122.62,122.58,3.53349943]
[1766598651527,0.67,122.62,122.58,3.53349943]
[1766598652034,0.67,122.62,122.58,2.51950623]
[1766598654036,8.1559416,122.61,122.58,0.71]
[1766598654236,8.1559416,122.61,122.58,2.51950623]
[1766598656729,0.72,122.61,122.58,2.51950623]
[1766598657132,10.43767296,122.58,122.54,0.71]
[1766598657427,10.43767296,122.58,122.52,0.2]
[1766598657428,4.97016039,122.57,122.53,0.91]
[1766598657934,1.80950623,122.56,122.52,0.2]
[1766598658118,11.15767296,122.54,122.52,0.2]
[1766598659039,19.31854494,122.54,122.52,0.2]
[1766598659737,18.59854494,122.54,122.52,0.2]
[1766598660827,18.59783598,122.55,122.53,0.71]
[1766598661028,18.59783598,122.55,122.52,2.71950623]
[1766598661342,18.59783598,122.55,122.52,0.91]
[1766598662341,18.59783598,122.55,122.52,2.71950623]
[1766598662342,19.31783598,122.55,122.52,2.71950623]
[1766598662842,19.31783598,122.55,122.52,0.91]
[1766598664932,0.72,122.54,122.52,0.2]
[1766598665139,8.88099393,122.54,122.52,0.2]
[1766598666049,8.16099393,122.54,122.52,0.2]
[1766598666958,8.16099393,122.54,122.52,0.91]
[1766598669254,0.72,122.53,122.51,0.2]
[1766598669424,8.16193274,122.52,122.51,0.2]
[1766598670338,8.88193274,122.52,122.51,1e-08]
[1766598671146,8.16193274,122.52,122.51,1e-08]
[1766598671347,8.88193274,122.52,122.51,1e-08]
[1766598671729,12.82717919,122.5,122.49,1e-08]
[1766598673058,0.58,122.49,122.45,2.69950623]
[1766598673352,8.16593173,122.46,122.43,1e-08]
[1766598673558,0.72,122.45,122.42,0.2]
[1766598673732,1.80950623,122.45,122.42,0.2]
[1766598673937,0.72,122.43,122.4,0.1]
[1766598674359,0.72,122.44,122.4,0.1]
[1766598675333,0.72,122.44,122.4,1e-08]
[1766598675334,8.16926721,122.41,122.4,1e-08]
[1766598675734,0.72,122.42,122.4,1e-08]
[1766598675956,0.72,122.44,122.41,0.69]
[1766598676158,0.72,122.44,122.4,1e-08]
[1766598676355,2.52950623,122.44,122.4,0.69000001]
[1766598676553,0.72,122.44,122.4,0.69000001]
[1766598676763,2.52950623,122.44,122.4,0.69000001]
[1766598676954,0.72,122.43,122.4,0.69000001]
[1766598677352,8.1685999,122.42,122.4,1e-08]
[1766598677564,8.8885999,122.42,122.4,1e-08]
[1766598677743,0.72,122.42,122.4,1e-08]
[1766598678144,8.88817005,122.43,122.4,1e-08]
[1766598678958,9.97767628,122.43,122.4,1e-08]
[1766598679146,8.8886359,122.42,122.4,1e-08]
[1766598679344,0.72,122.41,122.4,1e-08]
[1766598679550,4.05599999,122.38,122.37,0.1]
[1766598682055,4.05599999,122.38,122.34,2.49950623]
[1766598682056,12.9472698,122.38,122.34,2.49950623]
[1766598682764,4.05599999,122.38,122.35,0.69]
[1766598683060,12.94730142,122.38,122.35,0.69]
[1766598683239,12.94730142,122.38,122.34,0.69]
[1766598683440,12.94730142,122.38,122.35,0.69]
[1766598684463,4.05599999,122.38,122.35,0.69]
[1766598685156,8.89088104,122.39,122.35,0.69]
[1766598685554,0.72,122.38,122.35,0.26489585]
[1766598686667,8.8912996,122.38,122.35,0.26489585]
[1766598688467,8.8912996,122.38,122.34,10.6733823]
[1766598688666,8.8912996,122.38,122.34,2.49950623]
[1766598689064,8.8912996,122.38,122.34,1.80950623]
[1766598689263,8.8912996,122.38,122.35,0.69]
[1766598689458,0.72,122.4,122.37,0.69]
[1766598689661,10.43767296,122.41,122.37,1.80950623]
[1766598689965,10.43767296,122.41,122.37,0.69]
[1766598689966,11.15767296,122.41,122.37,0.69]
[1766598690163,0.72,122.4,122.37,2.49950623]
[1766598690755,0.72,122.4,122.37,0.69]
[1766598691766,8.88996207,122.4,122.37,0.69]
[1766598692152,8.88996207,122.4,122.36,10.67207883]
[1766598692552,0.72,122.39,122.36,2.49950623]
[1766598692954,0.72,122.39,122.36,0.69]
[1766598693154,0.72,122.39,122.36,10.67204586]
[1766598694373,8.88996207,122.4,122.36,10.67204586]
[1766598694849,8.16996207,122.4,122.37,0.69]
[1766598695266,8.16914167,122.42,122.37,9.98142203]
[1766598695470,45.08744484,122.45,122.42,0.69]
[1766598695471,4.25317413,122.45,122.42,0.69]
[1766598695767,0.72,122.49,122.45,0.69]
[1766598695971,4.25083907,122.47,122.45,0.69]
[1766598696173,0.72,122.49,122.43,1.80950623]
[1766598696174,0.72,122.46,122.43,1.80950623]
[1766598696351,0.72,122.46,122.43,2.49950623]
[1766598696675,0.72,122.47,122.43,2.49950623]
[1766598696873,0.72,122.47,122.43,0.69]
[1766598697071,0.72,122.47,122.43,2.49950623]
[1766598697372,8.8857834,122.47,122.43,2.49950623]
[1766598697975,8.8348703,122.48,122.44,0.71]
[1766598698150,8.8348703,122.48,122.44,2.51950623]
[1766598698981,8.8348703,122.48,122.44,0.71]
[1766598699282,0.67,122.48,122.44,2.51950623]
[1766598699578,11.10767296,122.48,122.44,2.51950623]
[1766598700451,8.83334008,122.5,122.46,2.51950623]
[1766598700648,8.83334008,122.5,122.47,1.80950623]
[1766598701054,8.83334008,122.5,122.46,2.51950623]
[1766598701357,0.67,122.49,122.46,2.51950623]
[1766598701755,0.67,122.49,122.46,0.71]
[1766598701976,0.67,122.49,122.46,2.51950623]
[1766598702771,0.67,122.49,122.46,0.71]
[1766598702976,0.67,122.49,122.46,2.51950623]
[1766598703275,33.72042961,122.51,122.48,0.71]
[1766598703471,34.39042961,122.51,122.48,0.71]
[1766598703865,0.87,122.51,122.48,2.51950623]
[1766598704060,0.2,122.51,122.48,1.80950623]
[1766598704265,0.2,122.51,122.49,0.69]
[1766598704462,0.2,122.51,122.48,2.49950623]
[1766598706557,0.2,122.51,122.49,1.80950623]
[1766598706877,0.2,122.51,122.48,2.49950623]
[1766598708254,0.2,122.51,122.48,9.9740098]
[1766598708462,0.2,122.51,122.5,0.69]
[1766598709484,0.2,122.51,122.49,1.80950623]
[1766598709862,0.2,122.51,122.49,2.49950623]
[1766598711172,0.2,122.51,122.48,8.85438132]
[1766598711372,0.2,122.51,122.49,1.80950623]
[1766598711580,0.2,122.51,122.49,2.49950623]
[1766598712985,0.2,122.51,122.49,0.69]
[1766598714483,0.2,122.51,122.49,3.5218822]
[1766598715265,0.66,122.5,122.47,0.69]
[1766598715466,0.66,122.5,122.47,3.5218822]
[1766598715676,8.36282017,122.51,122.47,3.5218822]
[1766598715877,0.66,122.49,122.45,18.4218822]
[1766598716068,8.36282017,122.51,122.48,0.69]
[1766598716275,9.02282017,122.51,122.48,0.69]
[1766598716906,0.66,122.5,122.46,0.69]
[1766598717068,8.36282017,122.51,122.47,0.69]
[1766598717268,9.02282017,122.51,122.47,0.69]
[1766598717790,0.66,122.5,122.47,0.69]
[1766598719000,0.66,122.5,122.47,3.5218822]
[1766598719290,0.2,122.51,122.49,3.5218822]
[1766598719492,0.2,122.51,122.5,0.69]
[1766598719793,0.2,122.51,122.5,3.5218822]
[1766598719968,0.2,122.51,122.49,2.8318822]
[1766598720174,0.2,122.51,122.49,0.69]
[1766598720398,0.2,122.51,122.49,3.5218822]
[1766598720572,0.2,122.51,122.49,0.69]
[1766598720775,0.86,122.51,122.48,3.5218822]
[1766598721090,0.2,122.51,122.5,0.69]
[1766598721575,0.2,122.51,122.49,3.5218822]
[1766598721897,0.2,122.51,122.5,3.5218822]
[1766598722077,8.16080276,122.54,122.5,3.5218822]
[1766598722280,8.82080276,122.54,122.5,3.5218822]
[1766598722476,0.66,122.53,122.49,3.5218822]
[1766598724494,8.82156252,122.53,122.49,3.5218822]
[1766598724803,8.82156252,122.53,122.49,0.69]
[1766598725102,0.66,122.52,122.49,0.69]
[1766598725315,2.8318822,122.51,122.46,11.68751494]
[1766598725594,0.66,122.5,122.46,11.68751494]
[1766598725978,0.66,122.5,122.46,10.99751494]
[1766598726179,0.66,122.5,122.47,0.69]
[1766598726690,2.8318822,122.48,122.43,0.69]
[1766598726879,0.66,122.47,122.43,8.85783268]
[1766598727070,0.66,122.47,122.44,0.69]
[1766598727276,3.4918822,122.47,122.42,11.67014335]
[1766598727596,0.69,122.46,122.42,11.67014335]
[1766598727979,0.69,122.46,122.43,0.67]
[1766598728296,3.5218822,122.46,122.43,0.67]
[1766598728497,3.5218822,122.46,122.41,14.9]
[1766598728498,0.69,122.44,122.41,14.9]
[1766598728696,0.69,122.44,122.39,0.67]
[1766598728697,0.69,122.43,122.39,8.84018687]
[1766598729499,0.69,122.43,122.4,8.16987959]
[1766598730301,0.69,122.43,122.39,11.67216895]
[1766598730682,8.85801869,122.43,122.39,3.5018822]
[1766598730877,8.85801869,122.43,122.39,0.67]
[1766598731081,8.85801869,122.43,122.39,3.5018822]
[1766598731779,8.85801869,122.43,122.39,0.67]
[1766598731980,8.85801869,122.43,122.39,3.5018822]
[1766598732380,8.85801869,122.43,122.39,11.6724082]
[1766598733881,3.5218822,122.45,122.41,0.67]
[1766598734094,0.69,122.44,122.4,3.5018822]
[1766598736017,8.16623181,122.46,122.42,3.5018822]
[1766598736224,23.24454383,122.48,122.43,3.5018822]
[1766598736520,0.69,122.47,122.43,0.67]
[1766598736700,3.5218822,122.47,122.43,0.67]
[1766598737222,0.69,122.46,122.42,0.67]
[1766598737518,0.69,122.46,122.43,0.67]
[1766598737812,0.69,122.46,122.42,3.5018822]
[1766598738309,0.69,122.46,122.42,11.67042379]
[1766598738931,0.69,122.46,122.43,11.66972839]
[1766598739096,0.69,122.48,122.44,3.5018822]
[1766598739432,8.85464226,122.48,122.44,3.5018822]
[1766598740092,8.85464226,122.48,122.44,0.67]
[1766598740790,8.85464226,122.48,122.43,15.59]
[1766598740791,3.5218822,122.47,122.43,15.59]
[1766598740990,0.69,122.47,122.43,15.59]
[1766598741213,8.85546387,122.47,122.43,15.59]
[1766598741394,8.85546387,122.47,122.43,26.58980539]
[1766598742223,8.85546387,122.47,122.43,11.66980539]
[1766598744010,8.85546387,122.47,122.43,0.67]
[1766598744212,0.69,122.46,122.42,11.67015027]
[1766598748303,8.16593348,122.46,122.42,8.83826807]
[1766598748507,0.66,122.45,122.42,11.67015027]
[1766598748708,10.99743911,122.47,122.42,11.67015027]
[1766598748918,0.66,122.46,122.42,11.00015027]
[1766598749222,0.66,122.46,122.42,11.72015027]
[1766598750532,39.01861685,122.46,122.4,8.8895773]
[1766598750715,0.66,122.44,122.4,0.72]
[1766598751028,0.66,122.44,122.4,3.5518822]
[1766598751901,0.66,122.44,122.4,11.72178687]
[1766598752103,8.82743936,122.44,122.4,11.72178687]
[1766598752513,8.82743936,122.44,122.4,3.5518822]
[1766598754209,8.82743936,122.44,122.4,11.72173927]
[1766598756429,8.16669329,122.45,122.42,0.72]
[1766598756737,8.82669329,122.45,122.41,0.72]
[1766598757032,0.66,122.44,122.4,2.8318822]
[1766598757225,0.66,122.44,122.4,0.72]
[1766598757637,0.7,122.43,122.39,0.7]
[1766598759006,0.7,122.43,122.39,8.17054727]
[1766598759212,0.7,122.43,122.4,0.7]
[1766598762530,8.86807484,122.43,122.4,0.7]
[1766598769041,0.7,122.43,122.4,0.7]
[1766598775347,8.83691359,122.45,122.41,0.65]
[1766598775550,0.67,122.45,122.42,0.65]
[1766598780226,0.67,122.44,122.4,8.16974904]
[1766598780431,0.67,122.43,122.4,0.65]
[1766598780624,0.67,122.46,122.43,0.65]
[1766598782426,0.67,122.45,122.42,0.65]
[1766598783147,8.16652077,122.46,122.42,0.65]
[1766598783353,8.16652077,122.46,122.43,0.65]
[1766598783658,0.67,122.47,122.44,2.46527301]
[1766598783956,0.67,122.47,122.44,0.65]
[1766598784834,10.65069989,122.47,122.44,0.65]
[1766598785659,0.67,122.46,122.43,0.65]
[1766598785863,1.81527301,122.46,122.41,8.819093]
[1766598786052,2.48527301,122.44,122.4,8.81957361]
[1766598786369,0.67,122.44,122.4,8.81957361]
[1766598786941,8.83729921,122.44,122.4,8.81957361]
[1766598787140,0.67,122.43,122.4,0.65]
[1766598788226,8.87729921,122.44,122.41,0.72]
[1766598790243,0.71,122.43,122.39,8.89024673]
[1766598790839,0.71,122.43,122.4,0.72]
[1766598791764,1.81527301,122.44,122.4,0.72]
[1766598792764,1.81527301,122.42,122.38,0.72]
[1766598793764,0.71,122.41,122.38,0.72]
[1766598794463,8.878756,122.42,122.38,0.72]
[1766598795266,10.69402901,122.42,122.38,0.72]
[1766598796044,0.71,122.41,122.38,0.72]
[1766598796264,10.69402901,122.42,122.38,0.72]
[1766598796566,10.69402901,122.42,122.39,0.72]
[1766598796864,8.878756,122.42,122.39,0.72]
[1766598797161,10.69402901,122.42,122.39,0.72]
[1766598799469,10.69402901,122.42,122.38,0.72]
[1766598799470,0.71,122.41,122.38,0.72]
[1766598799670,0.71,122.41,122.37,8.89159045]
[1766598799869,0.71,122.4,122.37,8.89193368]
[1766598800162,0.71,122.41,122.38,0.72]
[1766598800364,0.71,122.41,122.38,8.89121561]
[1766598803262,8.168756,122.42,122.38,8.17121561]
[1766598803464,2.52527301,122.44,122.4,0.72]
[1766598803768,23.08628785,122.46,122.41,0.72]
[1766598803941,8.87628785,122.46,122.42,0.72]
[1766598804667,8.87628785,122.46,122.43,0.72]
[1766598805037,8.16628785,122.46,122.43,0.72]
[1766598805243,8.87467553,122.48,122.45,0.72]
[1766598809568,0.71,122.48,122.45,2.53527301]
[1766598809764,0.71,122.51,122.47,2.53527301]
[1766598810061,15.63,122.53,122.49,2.53527301]
[1766598811172,23.79130601,122.53,122.49,2.53527301]
[1766598811355,0.71,122.52,122.49,2.53527301]
[1766598811556,0.71,122.52,122.49,0.72]
[1766598812276,0.71,122.52,122.48,2.53527301]
[1766598812459,0.71,122.52,122.48,10.69948009]
[1766598812788,0.71,122.52,122.49,1.81527301]
[1766598814360,8.87206563,122.52,122.48,0.72]
[1766598814552,8.87206563,122.52,122.48,2.53527301]
[1766598815447,8.87206563,122.52,122.48,10.69981424]
[1766598815849,0.71,122.54,122.49,1.81527301]
[1766598816049,0.71,122.54,122.51,2.53527301]
[1766598816270,0.71,122.54,122.51,0.72]
[1766598816474,0.71,122.54,122.51,2.53527301]
[1766598816978,8.87060062,122.54,122.49,0.72]
[1766598817179,8.87060062,122.54,122.5,2.53527301]
[1766598818181,0.69,122.53,122.49,2.51527301]
[1766598819973,8.85127156,122.53,122.49,10.67908435]
[1766598820373,8.85127156,122.53,122.49,8.86381134]
[1766598820580,8.85127156,122.53,122.5,1.81527301]
[1766598823076,0.69,122.52,122.48,8.86435875]
[1766598823283,0.69,122.52,122.49,2.51527301]
[1766598825882,0.69,122.52,122.49,2.01527301]
[1766598831795,0.71,122.51,122.47,10.64034352]
[1766598832496,0.71,122.51,122.49,1.81527301]
[1766598832676,0.71,122.51,122.48,10.63981433]
[1766598834396,10.43767296,122.53,122.48,10.63981433]
[1766598834397,8.16160492,122.53,122.48,8.16454132]
[1766598834581,0.71,122.55,122.52,2.47527301]
[1766598836085,0.71,122.55,122.52,3.4903207]
[1766598836290,3.5403207,122.55,122.5,0.66]
[1766598836482,0.71,122.53,122.49,8.16379441]
[1766598836696,0.71,122.53,122.49,10.99411511]
[1766598836996,0.71,122.53,122.49,11.65411511]
[1766598838002,0.71,122.53,122.49,3.4903207]
[1766598838605,8.87144619,122.53,122.49,3.4903207]
[1766598838984,0.71,122.52,122.49,3.4903207]
[1766598839995,0.71,122.52,122.49,0.66]
[1766598840194,0.71,122.52,122.49,3.4903207]
[1766598841196,8.16213481,122.52,122.47,25.33767296]
[1766598841490,0.71,122.51,122.48,3.4903207]
[1766598845677,0.71,122.5,122.47,3.4903207]
[1766598845877,0.71,122.5,122.47,11.65552792]
[1766598846495,0.71,122.5,122.47,3.4903207]
[1766598847702,0.67,122.49,122.46,0.67]
[1766598850310,0.67,122.48,122.45,3.5003207]
[1766598850611,0.67,122.48,122.44,0.67]
[1766598850612,2.8303207,122.48,122.44,0.67]
[1766598850908,0.67,122.47,122.44,0.67]
[1766598851589,0.67,122.47,122.43,2.8303207]
[1766598851590,0.67,122.47,122.43,0.67]
[1766598851789,0.67,122.47,122.43,3.5003207]
[1766598852510,8.83538973,122.47,122.43,3.5003207]
[1766598853400,8.83538973,122.47,122.44,0.67]
[1766598853604,8.83490464,122.48,122.45,0.67]
[1766598853992,8.83490464,122.48,122.44,0.67]
[1766598854712,8.16490464,122.48,122.44,0.67]
[1766598854920,0.67,122.47,122.44,0.67]
[1766598855216,0.67,122.46,122.42,18.4003207]
[1766598855518,0.67,122.46,122.42,0.67]
[1766598855519,0.67,122.45,122.42,0.67]
[1766598856701,0.67,122.45,122.42,11.66886741]
[1766598856895,0.67,122.45,122.42,3.5003207]
[1766598860413,0.67,122.44,122.41,2.8303207]
[1766598860615,0.67,122.44,122.41,11.6695747]
[1766598861025,0.67,122.45,122.42,0.67]
[1766598861324,0.67,122.45,122.41,11.6695747]
[1766598861504,8.8368675,122.45,122.41,11.6695747]
[1766598865814,8.8368675,122.45,122.4,14.9]
[1766598865815,0.67,122.44,122.4,17.7303207]
[1766598866019,2.8303207,122.44,122.4,14.9]
[1766598866232,0.67,122.43,122.4,14.9]
[1766598866615,0.67,122.43,122.4,26.57024748]
[1766598868009,0.67,122.44,122.41,0.67]
[1766598868937,8.83731011,122.44,122.41,0.67]
[1766598869635,0.67,122.43,122.4,26.57024748]
[1766598870629,0.67,122.44,122.41,0.67]
[1766598870935,8.83605893,122.46,122.43,0.67]
[1766598874022,0.67,122.45,122.42,3.5003207]
[1766598875133,0.67,122.45,122.42,11.66889986]
[1766598878649,8.8367374,122.45,122.42,0.67]
[1766598878853,0.67,122.45,122.42,0.67]
[1766598880345,11.09767296,122.48,122.45,0.71]
[1766598880840,0.66,122.47,122.43,0.71]
[1766598881041,0.66,122.47,122.43,3.5403207]
[1766598881243,0.66,122.47,122.43,11.70813023]
[1766598881539,0.66,122.47,122.43,10.99813023]
[1766598881720,0.66,122.47,122.44,0.71]
[1766598882139,8.82541127,122.47,122.44,0.71]
[1766598882443,0.68,122.46,122.42,10.99859952]
[1766598882642,0.68,122.46,122.43,0.65]
[1766598883232,8.84600908,122.46,122.43,0.65]
[1766598883427,0.68,122.46,122.43,0.65]
[1766598886130,8.84601443,122.46,122.43,0.65]
[1766598887152,8.84601443,122.46,122.43,3.4803207]
[1766598888028,8.84601443,122.46,122.43,0.65]
[1766598888361,8.84601443,122.46,122.43,3.4803207]
[1766598889273,8.84601443,122.46,122.43,0.65]
[1766598889568,0.68,122.45,122.41,3.4803207]
[1766598889726,0.68,122.44,122.4,18.3803207]
[1766598889928,0.68,122.44,122.4,15.55]
[1766598890162,0.68,122.44,122.4,18.3803207]
[1766598890360,8.8477713,122.44,122.4,18.3803207]
[1766598890547,0.68,122.43,122.4,15.55]
[1766598890945,0.68,122.43,122.41,0.65]
[1766598893467,0.68,122.46,122.43,0.65]
[1766598894164,8.16659861,122.45,122.42,0.65]
[1766598894334,0.68,122.44,122.4,15.55]
[1766598894533,0.68,122.44,122.4,18.3803207]
[1766598894738,0.68,122.43,122.4,14.9]
[1766598894959,0.68,122.43,122.4,15.55]
[1766598896157,8.84793574,122.43,122.4,15.55]
[1766598898443,8.84793574,122.43,122.4,17.36524218]
[1766598899467,0.68,122.43,122.4,17.36524218]
[1766598900169,0.68,122.43,122.4,2.46524218]
[1766598900372,1.81524218,122.42,122.37,0.65]
[1766598900543,0.68,122.41,122.38,0.65]
[1766598900744,2.49524218,122.44,122.39,2.46524218]
[1766598900953,0.68,122.43,122.39,0.65]
[1766598901673,0.68,122.43,122.4,0.65]
[1766598901969,0.68,122.42,122.39,0.65]
[1766598903566,0.68,122.41,122.37,1.81524218]
[1766598903770,0.68,122.41,122.37,0.65]
[1766598905171,0.68,122.41,122.37,2.46524218]
[1766598905365,8.84958453,122.41,122.37,2.46524218]
[1766598905966,8.16958453,122.41,122.37,0.65]
[1766598906273,0.68,122.4,122.37,2.46524218]
[1766598906880,0.68,122.4,122.36,15.57]
[1766598907176,30.40799475,122.41,122.35,1e-08]
[1766598907177,1.81524218,122.37,122.35,1e-08]
[1766598907475,8.88227728,122.37,122.35,1e-08]
[1766598907953,0.71,122.37,122.35,1e-08]
[1766598908859,8.88207645,122.37,122.35,1e-08]
[1766598909173,20.42383221,122.41,122.35,1e-08]
[1766598909347,8.87993464,122.4,122.37,0.66]
[1766598909541,0.71,122.4,122.37,2.47524218]
[1766598909975,0.71,122.4,122.37,0.66]
[1766598909976,8.87995128,122.4,122.37,0.66]
[1766598910361,0.71,122.39,122.36,0.66]
[1766598910777,0.71,122.39,122.36,2.47524218]
[1766598912146,0.71,122.39,122.37,1.81524218]
[1766598914681,0.71,122.39,122.36,10.64753553]
[1766598914981,0.71,122.39,122.37,1.81524218]
[1766598916083,0.71,122.39,122.36,8.83229335]
[1766598916380,0.71,122.39,122.37,1.81524218]
[1766598917174,0.71,122.39,122.36,10.64753553]
[1766598917589,0.71,122.39,122.37,9.98705977]
[1766598919573,0.71,122.39,122.37,8.17181759]
[1766598919975,0.71,122.41,122.38,2.47524218]
[1766598922286,0.71,122.41,122.38,10.64648146]
[1766598924485,0.71,122.41,122.38,9.98648146]
[1766598924884,0.71,122.41,122.38,1.81524218]
[1766598925395,0.71,122.41,122.38,2.47524218]
[1766598926089,0.71,122.41,122.38,0.66]
[1766598926295,0.71,122.4,122.36,8.83222766]
[1766598926596,0.71,122.4,122.37,2.47524218]
[1766598927175,0.71,122.4,122.37,9.98716238]
[1766598927370,0.71,122.4,122.38,0.66]
[1766598928297,0.71,122.4,122.36,10.64754789]
[1766598928471,0.71,122.4,122.37,1.81524218]
[1766598929100,0.71,122.4,122.36,8.83230571]
[1766598929101,0.71,122.39,122.36,0.66]
[1766598929270,0.71,122.39,122.36,2.47524218]
[1766598932301,8.88061342,122.39,122.36,2.47524218]
[1766598934016,8.17061342,122.39,122.35,14.92000001]
[1766598934302,0.71,122.38,122.35,1e-08]
[1766598935313,8.88160997,122.38,122.35,1e-08]
[1766598935508,8.88160997,122.38,122.35,0.66000001]
[1766598937215,0.71,122.37,122.35,1e-08]
[1766598937707,0.71,122.37,122.35,0.69000001]
[1766598938995,8.88216786,122.37,122.35,1e-08]
[1766598939196,0.66,122.36,122.35,1e-08]
[1766598939602,8.83260542,122.36,122.35,1e-08]
[1766598940420,8.17260542,122.36,122.35,1e-08]
[1766598941313,8.89260542,122.36,122.35,1e-08]
[1766598941906,8.17260542,122.36,122.35,1e-08]
[1766598943697,28.59981663,122.38,122.35,1e-08]
[1766598943997,0.72,122.37,122.35,1e-08]
[1766598945136,8.17260542,122.36,122.35,1e-08]
[1766598945435,8.89260542,122.36,122.35,1e-08]
[1766598962928,8.17226568,122.37,122.35,1e-08]
[1766598963132,8.89226568,122.37,122.35,2.83925961]
[1766598963435,0.72,122.36,122.35,1e-08]
[1766598968742,10.43767296,122.39,122.36,0.7]